bitfinex-derivatives/quotes_ETHF0:USTF0_20210107
["timestamp","ask_amount","ask_price","bid_price","bid_amount"]
[1610006423211,7.04578518,1190.0,1189.9,42.3623]
[1610006423613,7.04578518,1190.0,1189.9,12.3623]
[1610006423813,5.03678242,1190.0,1189.9,42.3623]
[1610006424012,7.04948268,1190.1,1189.9,42.3623]
[1610006424412,7.04948268,1190.1,1190.0,4.00959]
[1610006424612,7.04948268,1190.1,1190.0,3.75789]
[1610006424812,7.04948268,1190.1,1190.0,3.64489]
[1610006425013,7.04948268,1190.1,1190.0,33.64489]
[1610006425312,7.04948268,1190.1,1190.0,3.64489]
[1610006426617,7.04948268,1190.1,1190.0,33.64489]
[1610006427313,11.06548085,1190.1,1190.0,43.64489]
[1610006427515,11.06548085,1190.1,1190.0,13.64489]
[1610006427715,13.09244255,1190.2,1190.0,13.64489]
[1610006427915,13.09244255,1190.2,1190.0,43.64489]
[1610006428216,13.09244255,1190.2,1190.1,10.0]
[1610006428715,13.09244255,1190.2,1190.1,9.8233]
[1610006429015,13.09244255,1190.2,1190.1,39.8233]
[1610006429616,13.09713087,1190.3,1190.1,39.6483]
[1610006430016,13.09713087,1190.3,1190.2,10.0]
[1610006430216,13.09713087,1190.3,1190.2,40.0]
[1610006430415,13.09713087,1190.3,1190.2,46.30689]
[1610006431519,13.09713087,1190.3,1190.2,16.30689]
[1610006431919,13.09713087,1190.3,1190.2,12.02249]
[1610006432220,15.10164211,1190.4,1190.2,12.02249]
[1610006432419,15.10164211,1190.4,1190.2,10.21029]
[1610006432720,15.10164211,1190.4,1190.2,4.76759]
[1610006432921,15.10164211,1190.4,1190.2,3.85579]
[1610006433119,15.10164211,1190.4,1189.6,2.5028]
[1610006433422,17.16604211,1190.4,1048.5,0.6333053]
[1610006433619,17.16604211,1190.4,1190.2,9.6432]
[1610006434020,19.17064355,1190.4,1190.2,9.6432]
[1610006434221,19.17064355,1190.4,1190.2,6.2201]
[1610006434421,4.00959,1190.3,1189.8,4.00959]
[1610006434620,5.68199,1190.3,1189.8,4.00959]
[1610006434922,5.68199,1190.3,1189.0,2.5166]
[1610006435124,5.68199,1190.3,1190.2,10.0]
[1610006435325,5.68199,1190.3,1190.2,5.8379]
[1610006435528,5.68199,1190.3,1188.6,1.9727]
[1610006435827,5.68199,1190.3,1188.3,2.7799]
[1610006436029,5.68199,1190.3,1180.0,30.0]
[1610006436228,5.68199,1190.3,1180.0,66.023]
[1610006436529,4.00959,1188.4,1188.1,4.00959]
[1610006436728,6.67349,1188.4,1188.1,4.00959]
[1610006436928,2.6639,1188.4,1180.0,66.023]
[1610006437829,2.5838,1188.9,1180.0,66.023]
[1610006438031,2.5838,1188.9,1180.0,68.6004]
[1610006438429,2.5838,1188.9,1188.4,4.00959]
[1610006438631,13.02316459,1188.6,1188.4,4.00959]
[1610006439132,13.02316459,1188.6,1188.4,3.22569]
[1610006439334,13.02584836,1188.7,1188.5,10.0]
[1610006439732,16.14111231,1188.8,1188.6,10.0]
[1610006440030,16.14111231,1188.8,1188.5,10.0]
[1610006440432,16.14111231,1188.8,1188.7,14.00959]
[1610006440934,16.14111231,1188.8,1188.7,4.00959]
[1610006441434,16.14111231,1188.8,1188.7,44.00959]
[1610006442536,16.14111231,1188.8,1188.7,14.00959]
[1610006442835,13.03729104,1188.8,1188.7,44.00959]
[1610006445141,13.03729104,1188.8,1188.7,14.00959]
[1610006445537,13.03729104,1188.8,1188.7,45.30169176]
[1610006446345,2.01147178,1188.8,1188.7,45.30169176]
[1610006446547,2.01147178,1188.8,1188.7,15.30169176]
[1610006447641,2.01147178,1188.8,1188.7,40.30169176]
[1610006448240,5.03370813,1189.1,1188.7,40.30169176]
[1610006448441,5.03370813,1189.1,1189.0,4.00959]
[1610006448642,7.02658936,1189.1,1189.0,4.00959]
[1610006449042,7.02658936,1189.1,1189.0,44.00959]
[1610006449542,7.02658936,1189.1,1189.0,47.55801982]
[1610006450141,7.02658936,1189.1,1189.0,17.55801982]
[1610006450341,7.02658936,1189.1,1189.0,47.55801982]
[1610006450743,3.10015951,1189.1,1189.0,47.55801982]
[1610006450943,5.02570018,1189.3,1189.0,47.55801982]
[1610006451144,1.20626899,1189.1,1189.0,47.55801982]
[1610006451343,1.20626899,1189.1,1189.0,37.55801982]
[1610006451544,2.94073516,1189.1,1189.0,37.55801982]
[1610006451745,2.94073516,1189.1,1189.0,47.55801982]
[1610006452346,2.94073516,1189.1,1189.0,17.55801982]
[1610006453046,1.73446617,1189.1,1189.0,17.55801982]
[1610006453348,5.02512692,1189.4,1189.0,17.55801982]
[1610006453548,7.03316964,1189.5,1189.0,17.55801982]
[1610006453747,7.03316964,1189.5,1189.1,10.0]
[1610006454047,7.03316964,1189.5,1189.1,11.29184286]
[1610006454248,7.03316964,1189.5,1189.2,10.0]
[1610006454448,7.03316964,1189.5,1189.4,4.00959]
[1610006454650,7.03316964,1189.5,1189.4,6.54029]
[1610006455149,7.03316964,1189.5,1189.4,16.54029]
[1610006455450,7.03316964,1189.5,1189.4,17.83227608]
[1610006455653,9.04121236,1189.6,1189.4,17.83227608]
[1610006456051,9.04121236,1189.6,1189.5,10.0]
[1610006456348,9.04707358,1189.7,1189.5,10.0]
[1610006456549,9.04707358,1189.7,1189.6,14.00959]
[1610006457852,14.04707358,1189.7,1189.6,14.00959]
[1610006458450,14.04707358,1189.7,1189.6,15.30106783]
[1610006458951,10.03469823,1189.7,1189.6,15.30106783]
[1610006460152,5.0,1189.7,1189.6,15.30106783]
[1610006460652,10.03544979,1189.7,1189.6,15.30106783]
[1610006461053,10.03544979,1189.7,1189.6,45.30106783]
[1610006461454,8.52566864,1189.7,1189.6,45.30106783]
[1610006462056,8.52566864,1189.7,1189.6,15.30106783]
[1610006462354,8.52566864,1189.7,1189.6,45.30106783]
[1610006462755,10.22336864,1189.7,1189.6,45.30106783]
[1610006463157,8.52566864,1189.7,1189.6,54.67586783]
[1610006463858,5.0,1189.7,1189.6,54.67586783]
[1610006464158,6.20892443,1189.7,1189.6,54.67586783]
[1610006466458,6.20892443,1189.7,1189.6,24.67586783]
[1610006466958,6.20892443,1189.7,1189.6,54.67586783]
[1610006468762,6.20892443,1189.7,1189.6,24.67586783]
[1610006470567,6.20892443,1189.7,1189.6,21.83786783]
[1610006471367,5.0,1189.7,1189.6,21.83786783]
[1610006472468,5.0,1189.7,1189.6,12.46306783]
[1610006472970,5.0,1189.7,1189.6,11.17159]
[1610006473572,14.05721667,1189.7,1189.6,10.59949]
[1610006473772,14.05721667,1189.7,1189.6,7.10999]
[1610006474374,18.07138418,1189.7,1189.6,7.10999]
[1610006474677,18.07138418,1189.7,1189.6,10.17218]
[1610006475074,18.07138418,1189.7,1189.6,8.49528]
[1610006476074,18.07138418,1189.7,1189.6,8.37038]
[1610006476476,18.07138418,1189.7,1189.6,1.81488]
[1610006476676,18.07138418,1189.7,1189.0,2.2567]
[1610006476877,23.07138418,1189.7,1187.2,30.0]
[1610006477078,23.07138418,1189.7,1189.6,10.0]
[1610006477377,23.07138418,1189.7,1189.6,1.7397]
[1610006477579,23.07138418,1189.7,1188.6,2.3871]
[1610006477779,23.07138418,1189.7,1187.2,30.0]
[1610006477980,10.0,1189.7,1180.0,47.074]
[1610006478380,10.0,1189.7,1189.6,10.0]
[1610006478779,10.0,1189.7,1187.8,3.0503]
[1610006478980,29.03876608,1189.7,1187.8,3.0503]
[1610006479280,29.03876608,1189.7,1189.3,10.0]
[1610006479681,1.60289007,1188.1,1187.9,11.29295922]
[1610006480383,1.6024284,1188.0,1187.9,10.45155922]
[1610006480584,1.6024284,1188.0,1187.9,14.46114922]
[1610006480883,1.6024284,1188.0,1187.9,12.52854922]
[1610006481081,1.6024284,1188.0,1187.9,30.89739]
[1610006481682,3.51031972,1188.2,1187.9,30.89739]
[1610006482083,3.51031972,1188.2,1188.0,10.0]
[1610006482284,3.51031972,1188.2,1188.1,30.0]
[1610006482485,3.51031972,1188.2,1188.1,32.2031]
[1610006482684,5.01259635,1188.3,1188.1,36.21269]
[1610006483084,5.01259635,1188.3,1188.1,46.21269]
[1610006483486,5.01259635,1188.3,1188.1,36.21269]
[1610006483684,65.9527,1189.1,1188.2,11.29205144]
[1610006483885,65.9527,1189.1,1188.3,30.0]
[1610006484086,1.29213409,1188.5,1188.3,40.0]
[1610006484488,1.2920534,1189.0,1188.4,10.0]
[1610006484686,1.2920534,1189.0,1188.9,4.00959]
[1610006484886,1.2920534,1189.0,1188.9,6.37439]
[1610006485185,1.2920534,1189.0,1188.9,46.37439]
[1610006485587,1.2920534,1189.0,1188.9,16.37439]
[1610006486587,65.9527,1189.1,1188.9,46.37439]
[1610006486787,65.9527,1189.1,1189.0,10.0]
[1610006487589,75.51382494,1189.1,1189.0,10.0]
[1610006488090,75.51382494,1189.1,1189.0,4.8841]
[1610006488390,75.51382494,1189.1,1188.9,6.37439]
[1610006488391,80.53956289,1189.1,1188.9,2.23939]
[1610006488592,80.53956289,1189.1,1189.0,3.70949]
[1610006488793,80.53956289,1189.1,1189.0,3.37269]
[1610006489093,82.54648731,1189.1,1189.0,3.37269]
[1610006489493,87.32525125,1189.1,1189.0,3.37269]
[1610006489793,87.32525125,1189.1,1189.0,1.62669]
[1610006489991,87.32525125,1189.1,1189.0,10.46919]
[1610006490594,85.32388036,1189.1,1189.0,10.46919]
[1610006490993,85.32388036,1189.1,1189.0,13.27139]
[1610006491395,19.37118036,1189.1,1189.0,13.27139]
[1610006491894,7.03951841,1189.1,1189.0,13.27139]
[1610006492594,7.03951841,1189.1,1189.0,14.56331623]
[1610006493902,7.03951841,1189.1,1189.0,14.09412623]
[1610006494197,5.03152693,1189.1,1189.0,11.29192623]
[1610006494397,5.03152693,1189.1,1189.0,8.34272623]
[1610006494597,9.04111693,1189.1,1189.0,8.34272623]
[1610006494798,13.95795341,1189.1,1189.0,8.34272623]
[1610006495197,13.95795341,1189.1,1189.0,7.0508]
[1610006495497,4.90696709,1189.1,1188.4,3.1374]
[1610006495698,20.18495945,1189.1,1188.8,9.8055]
[1610006495997,20.18495945,1189.1,1188.5,10.0]
[1610006496196,14.54965448,1189.0,1188.5,9.807]
[1610006496502,14.54965448,1189.0,1188.2,10.0]
[1610006496797,4.00959,1188.7,1188.2,9.7694]
[1610006496997,4.00959,1188.7,1188.6,10.0]
[1610006497497,4.00959,1188.7,1188.2,10.0]
[1610006497997,4.00959,1188.7,1188.6,10.0]
[1610006498398,4.00959,1188.7,1188.3,10.0]
[1610006498599,4.00959,1188.8,1188.6,2.70669]
[1610006498800,14.54965448,1189.0,1188.6,2.23929]
[1610006499201,13.03433194,1188.8,1188.7,10.0]
[1610006499500,13.03433194,1188.8,1188.6,2.23929]
[1610006499700,13.03433194,1188.8,1188.7,1.29230326]
[1610006500003,13.03433194,1188.8,1188.7,14.19100326]
[1610006500600,5.0290651,1188.8,1188.7,14.19100326]
[1610006501901,5.0290651,1188.8,1188.7,44.19100326]
[1610006503101,3.52387372,1188.9,1188.7,44.19100326]
[1610006503502,1.21052292,1189.1,1188.8,10.0]
[1610006503702,1.21052292,1189.1,1188.8,41.29154498]
[1610006504002,1.21052292,1189.1,1188.9,10.0]
[1610006504204,1.21052292,1189.1,1189.0,10.0]
[1610006504403,1.21052292,1189.1,1189.0,42.167]
[1610006504704,1.21052292,1189.1,1189.0,6.17659]
[1610006505005,1.21052292,1189.1,1189.0,16.17659]
[1610006505207,1.21052292,1189.1,1189.0,17.46801448]
[1610006506609,2.0177307,1189.2,1189.0,17.46801448]
[1610006507110,2.0177307,1189.2,1189.1,10.0]
[1610006507309,3.53607305,1189.3,1189.1,10.0]
[1610006507509,3.53607305,1189.3,1189.2,10.0]
[1610006507709,7.0609056,1189.3,1189.2,10.0]
[1610006507909,7.0609056,1189.3,1189.1,10.0]
[1610006508411,7.0609056,1189.3,1189.2,10.0]
[1610006508710,7.0609056,1189.3,1189.2,14.00959]
[1610006509512,8.7330056,1189.3,1189.2,14.00959]
[1610006509711,7.0609056,1189.3,1189.2,14.00959]
[1610006510312,9.07686723,1189.4,1189.2,14.00959]
[1610006510512,2.21939481,1189.3,1189.2,4.00959]
[1610006510912,2.01883331,1189.3,1189.2,14.00959]
[1610006512215,2.01856851,1189.3,1189.2,15.30115655]
[1610006513215,3.53692241,1189.3,1189.2,15.30115655]
[1610006513513,3.53692241,1189.3,1189.2,14.00959]
[1610006516116,3.5382739,1189.4,1189.2,14.00959]
[1610006516316,3.5382739,1189.4,1189.3,10.0]
[1610006516518,3.5382739,1189.4,1189.3,12.3266]
[1610006517619,3.5382739,1189.4,1189.3,13.61811836]
[1610006517818,3.53642825,1189.5,1189.3,13.61811836]
[1610006518419,3.53642825,1189.5,1189.4,10.0]
[1610006518820,3.53642825,1189.5,1189.4,14.00959]
[1610006519020,3.53642825,1189.5,1189.4,15.30106707]
[1610006520923,1.6594,1189.5,1189.4,15.30106707]
[1610006521223,11.2790877,1189.5,1189.4,15.30106707]
[1610006521825,8.71369329,1189.5,1189.4,15.30106707]
[1610006522127,11.27873159,1189.5,1189.4,15.30106707]
[1610006522826,11.6304377,1189.5,1189.4,15.30106707]
[1610006523327,9.0653994,1189.5,1189.4,15.30106707]
[1610006524527,11.6185313,1189.5,1189.4,15.30106707]
[1610006524725,11.62090463,1189.6,1189.4,15.30106707]
[1610006525033,11.62090463,1189.6,1189.5,10.0]
[1610006526027,13.28940463,1189.6,1189.5,10.0]
[1610006526226,11.62090463,1189.6,1189.5,11.29167276]
[1610006529630,9.61629465,1189.6,1189.5,11.29167276]
[1610006531632,2.55360476,1189.6,1189.5,11.29167276]
[1610006533432,9.62901672,1189.6,1189.5,11.29167276]
[1610006533832,7.61462969,1189.6,1189.5,41.29167276]
[1610006534331,4.57815297,1189.6,1189.5,41.29167276]
[1610006535234,3.90092889,1189.7,1189.5,41.29167276]
[1610006535735,3.09185865,1189.7,1189.6,10.0]
[1610006536035,3.09185865,1189.7,1189.6,42.0792]
[1610006536834,1.87558215,1189.7,1189.6,46.08879]
[1610006537034,1.87558215,1189.7,1189.6,47.37962424]
[1610006537636,3.09279195,1189.7,1189.6,47.37962424]
[1610006538335,3.09279195,1189.7,1189.6,17.37962424]
[1610006539439,3.09279195,1189.7,1189.6,47.37962424]
[1610006540443,3.09279195,1189.7,1189.6,17.37962424]
[1610006540844,3.09279195,1189.7,1189.6,47.37962424]
[1610006541946,3.09279195,1189.7,1189.6,17.37962424]
[1610006542446,3.09279195,1189.7,1189.6,47.37962424]
[1610006543446,3.09279195,1189.7,1189.6,17.37962424]
[1610006543847,3.09279195,1189.7,1189.6,47.37962424]
[1610006544148,3.09279195,1189.7,1189.6,17.37962424]
[1610006545551,5.43069655,1189.7,1189.6,17.37962424]
[1610006545951,1.87558215,1189.7,1189.6,17.37962424]
[1610006546653,1.87558215,1189.7,1189.6,47.37962424]
[1610006547555,6.95060138,1189.7,1189.6,47.37962424]
[1610006547755,6.95060138,1189.7,1189.6,98.15002424]
[1610006549256,9.13097865,1189.9,1189.6,98.15002424]
[1610006549656,9.13097865,1189.9,1189.7,10.0]
[1610006549856,9.13097865,1189.9,1189.8,30.0]
[1610006550057,9.13097865,1189.9,1189.8,40.0]
[1610006550660,11.1625388,1190.1,1189.8,40.0]
[1610006550959,11.1625388,1190.1,1190.0,4.00959]
[1610006551161,11.16615866,1190.4,1190.0,34.00959]
[1610006551361,11.16615866,1190.4,1190.0,44.00959]
[1610006551761,11.16615866,1190.4,1190.1,10.0]
[1610006551963,1.21962291,1190.2,1190.1,43.0681]
[1610006552363,2.03206862,1190.3,1190.1,33.0681]
[1610006552565,2.03206862,1190.3,1190.2,10.0]
[1610006552763,2.03206862,1190.3,1190.1,44.35863862]
[1610006552964,2.03206862,1190.3,1190.2,4.00959]
[1610006553164,2.03206862,1190.3,1190.2,14.00959]
[1610006554166,2.03206862,1190.3,1190.2,15.30014868]
[1610006556169,11.18145761,1190.9,1190.2,15.30014868]
[1610006556469,11.18145761,1190.9,1190.3,10.0]
[1610006556870,11.18145761,1190.9,1190.4,10.0]
[1610006557070,11.18145761,1190.9,1190.8,4.00959]
[1610006557671,11.18145761,1190.9,1190.8,14.00959]
[1610006558470,11.18145761,1190.9,1190.8,15.30012162]
[1610006560574,13.18827676,1191.0,1190.8,15.30012162]
[1610006560774,7.1131595,1190.9,1190.8,5.30012162]
[1610006561075,9.14404016,1191.0,1190.8,5.30012162]
[1610006561274,9.14404016,1191.0,1190.8,15.30012162]
[1610006561576,9.14404016,1191.0,1190.9,10.0]
[1610006561775,9.14404016,1191.0,1190.9,11.29015741]
[1610006563374,11.18660348,1191.0,1190.9,11.29015741]
[1610006565479,3.09690364,1191.2,1190.9,11.29015741]
[1610006565785,3.09690364,1191.2,1191.0,10.0]
[1610006566181,3.09690364,1191.2,1191.1,10.0]
[1610006566583,52.11080364,1191.2,1191.0,10.0]
[1610006566786,62.2337977,1191.2,1191.0,10.0]
[1610006567081,61.28296376,1191.2,1191.1,10.0]
[1610006567280,61.28296376,1191.2,1191.0,10.0]
[1610006567481,84.78406413,1191.2,1191.1,1.29049242]
[1610006567681,84.78406413,1191.2,1191.1,11.29049242]
[1610006568384,80.77447413,1191.2,1191.1,11.29049242]
[1610006568681,64.25535048,1191.2,1191.1,11.29049242]
[1610006568980,80.77621748,1191.2,1191.1,11.29049242]
[1610006569183,84.78580748,1191.2,1191.1,11.29049242]
[1610006569681,76.52537398,1191.2,1191.1,11.29049242]
[1610006570781,74.21038398,1191.2,1191.1,11.29049242]
[1610006571680,71.11272142,1191.2,1191.1,11.29049242]
[1610006572080,65.94995048,1191.2,1191.1,11.29049242]
[1610006572281,82.46917148,1191.2,1191.1,11.29049242]
[1610006572781,57.2735105,1191.2,1191.1,11.29049242]
[1610006573181,78.74338224,1191.2,1191.1,11.29049242]
[1610006573583,62.22446072,1191.2,1191.1,11.29049242]
[1610006574784,70.48341384,1191.2,1191.1,11.29049242]
[1610006575183,74.49300384,1191.2,1191.1,11.29049242]
[1610006575787,69.54295093,1191.2,1191.1,11.29049242]
[1610006576088,35.72550187,1191.2,1191.1,11.29049242]
[1610006576587,22.30314836,1191.2,1191.1,11.29049242]
[1610006577386,22.30314836,1191.2,1191.1,10.0]
[1610006578289,22.30314836,1191.2,1190.5,65.8246]
[1610006579288,4.00959,1190.6,1190.5,65.8246]
[1610006579988,4.00959,1190.6,1190.5,67.11579064]
[1610006580490,5.66779,1190.6,1190.5,67.11579064]
[1610006582892,8.76689237,1190.6,1190.5,67.11579064]
[1610006584193,7.10869237,1190.6,1190.5,67.11579064]
[1610006584795,7.10869237,1190.6,1190.5,77.11579064]
[1610006585394,17.96999237,1190.6,1190.5,11.29119064]
[1610006587296,17.96999237,1190.6,1190.5,10.0]
[1610006588196,33.14545483,1190.6,1190.5,10.0]
[1610006588797,17.96999237,1190.6,1190.5,10.0]
[1610006590598,16.27669237,1190.6,1190.5,10.0]
[1610006591397,12.26710237,1190.6,1190.5,14.00959]
[1610006592899,13.95660237,1190.6,1190.5,14.00959]
[1610006593100,13.95660237,1190.6,1190.5,15.30031635]
[1610006593400,1.6895,1190.6,1190.5,45.30031635]
[1610006593699,9.09118833,1190.6,1190.5,45.30031635]
[1610006594701,11.11033066,1190.7,1190.5,45.30031635]
[1610006595104,11.11033066,1190.7,1190.6,10.0]
[1610006595301,11.11033066,1190.7,1190.6,43.0338]
[1610006595502,7.07536847,1190.7,1190.6,43.0338]
[1610006595702,7.07536847,1190.7,1190.6,44.32375301]
[1610006596005,6.78206343,1190.8,1190.6,44.32375301]
[1610006596304,6.78206343,1190.8,1190.7,10.0]
[1610006596604,1.62150349,1190.8,1190.7,40.0]
[1610006597106,1.62150349,1190.8,1190.7,41.28982619]
[1610006597404,1.62150349,1190.8,1190.7,45.29941619]
[1610006597907,2.02817785,1190.8,1190.7,45.29941619]
[1610006598506,2.02817785,1190.8,1190.7,101.54471619]
[1610006599106,3.70797785,1190.8,1190.7,101.54471619]
[1610006600007,2.02817785,1190.8,1190.7,101.54471619]
[1610006600207,2.02817785,1190.8,1190.7,71.54471619]
[1610006601207,2.02817785,1190.8,1190.7,70.25489]
[1610006601507,4.19367785,1190.8,1190.7,70.25489]
[1610006602708,9.28070747,1190.8,1190.7,70.25489]
[1610006603310,2.1655,1190.8,1190.7,70.25489]
[1610006603811,13.34117619,1190.8,1190.7,70.25489]
[1610006604012,13.34117619,1190.8,1190.7,14.00959]
[1610006604312,2.1655,1190.8,1190.7,10.0]
[1610006605011,13.33836362,1190.8,1190.7,10.0]
[1610006605611,13.33836362,1190.8,1190.7,14.00959]
[1610006606815,13.33836362,1190.8,1190.7,15.30025869]
[1610006609819,13.33836362,1190.8,1190.7,11.29066869]
[1610006611521,17.34795362,1190.8,1190.7,11.29066869]
[1610006613721,2.1655,1190.8,1190.7,15.30025869]
[1610006613926,13.2458415,1190.8,1190.7,15.30025869]
[1610006614422,15.5622415,1190.8,1190.7,15.30025869]
[1610006615622,19.5718315,1190.8,1190.7,15.30025869]
[1610006616222,6.32599,1190.8,1190.7,15.30025869]
[1610006617223,6.32599,1190.8,1190.7,11.29066869]
[1610006619628,6.32599,1190.8,1190.7,15.30025869]
[1610006620228,2.3164,1190.8,1190.7,15.30025869]
[1610006620428,13.2510774,1190.9,1190.7,15.30025869]
[1610006620627,15.28742604,1191.1,1190.7,15.30025869]
[1610006620628,13.24938459,1190.8,1190.7,15.30025869]
[1610006620828,13.24938459,1190.8,1190.7,5.30025869]
[1610006621028,15.39308459,1190.8,1190.7,5.30025869]
[1610006621229,15.39308459,1190.8,1190.7,15.30025869]
[1610006622732,2.1437,1190.8,1190.7,15.30025869]
[1610006623131,11.31613683,1190.8,1190.7,15.30025869]
[1610006623632,14.41372955,1190.8,1190.7,15.30025869]
[1610006625133,16.11402955,1190.8,1190.7,45.30025869]
[1610006626233,16.11402955,1190.8,1190.7,15.30025869]
[1610006626432,14.41372955,1190.8,1190.7,15.30025869]
[1610006627533,5.24129272,1190.8,1190.7,15.30025869]
[1610006630038,6.43151707,1190.9,1190.7,15.30025869]
[1610006630336,6.43151707,1190.9,1190.8,10.0]
[1610006631937,6.43151707,1190.9,1190.8,11.2906165]
[1610006632739,13.28251609,1191.0,1190.8,11.2906165]
[1610006633039,13.28251609,1191.0,1190.9,10.0]
[1610006633741,13.28251609,1191.0,1190.9,14.00959]
[1610006634740,13.28251609,1191.0,1190.9,15.30018427]
[1610006638845,16.34221609,1191.0,1190.9,15.30018427]
[1610006642047,3.0597,1191.0,1190.9,15.30018427]
[1610006642249,4.7263,1191.0,1190.9,15.30018427]
[1610006642448,15.95747467,1191.0,1190.9,15.30018427]
[1610006645955,14.29087467,1191.0,1190.9,15.30018427]
[1610006647759,15.99437467,1191.0,1190.9,15.30018427]
[1610006647959,14.29087467,1191.0,1190.9,15.30018427]
[1610006648961,15.94567467,1191.0,1190.9,15.30018427]
[1610006652564,12.28033656,1191.0,1190.9,45.30018427]
[1610006653563,11.90930691,1191.0,1190.9,45.30018427]
[1610006653764,10.23590691,1191.0,1190.9,45.30018427]
[1610006655065,10.23590691,1191.0,1190.9,15.30018427]
[1610006656066,11.89100691,1191.0,1190.9,15.30018427]
[1610006656467,10.23590691,1191.0,1190.9,15.30018427]
[1610006657768,10.23590691,1191.0,1190.9,45.30018427]
[1610006658468,11.89690691,1191.0,1190.9,45.30018427]
[1610006658668,11.89690691,1191.0,1190.9,15.30018427]
[1610006659168,10.23590691,1191.0,1190.9,15.30018427]
[1610006660370,11.89020691,1191.0,1190.9,15.30018427]
[1610006660568,10.23590691,1191.0,1190.9,15.30018427]
[1610006661469,11.92850691,1191.0,1190.9,15.30018427]
[1610006661784,10.23590691,1191.0,1190.9,15.30018427]
[1610006662671,11.91790691,1191.0,1190.9,15.30018427]
[1610006663379,15.01550277,1191.0,1190.8,52.0569]
[1610006663772,4.00959,1190.9,1190.8,52.0569]
[1610006664172,4.00959,1190.9,1190.8,62.0569]
[1610006664477,15.01550277,1191.0,1190.8,62.0569]
[1610006665073,15.01550277,1191.0,1190.9,10.0]
[1610006665574,13.33350277,1191.0,1190.9,7.755]
[1610006665773,17.34309277,1191.0,1190.9,11.76459]
[1610006665972,13.33350277,1191.0,1190.9,11.76459]
[1610006666273,20.54185677,1191.0,1190.9,11.76459]
[1610006666673,21.60723689,1191.0,1190.9,11.76459]
[1610006666973,6.15758621,1191.0,1190.9,11.76459]
[1610006667873,19.56357404,1191.0,1190.9,11.76459]
[1610006669074,19.56357404,1191.0,1190.9,7.755]
[1610006669675,6.15758621,1191.0,1190.9,7.755]
[1610006669873,10.16717621,1191.0,1190.9,7.755]
[1610006670574,11.84247621,1191.0,1190.9,7.755]
[1610006670775,10.16717621,1191.0,1190.9,7.755]
[1610006671275,7.06929,1191.0,1190.9,7.755]
[1610006671574,25.58030428,1191.0,1190.9,7.755]
[1610006671775,27.24870428,1191.0,1190.9,7.755]
[1610006671979,25.58030428,1191.0,1190.9,7.755]
[1610006672978,27.24010428,1191.0,1190.9,7.755]
[1610006674084,25.58030428,1191.0,1190.9,7.755]
[1610006674980,27.24550428,1191.0,1190.9,7.755]
[1610006675381,25.58030428,1191.0,1190.9,7.755]
[1610006676380,27.27270428,1191.0,1190.9,7.755]
[1610006676881,11.85954669,1191.0,1190.9,7.755]
[1610006678288,10.16714669,1191.0,1190.9,7.755]
[1610006678483,6.15755669,1191.0,1190.9,7.755]
[1610006679482,7.85395669,1191.0,1190.9,7.755]
[1610006679882,7.85395669,1191.0,1190.9,9.0455521]
[1610006681087,6.15755669,1191.0,1190.9,9.0455521]
[1610006681788,19.55627099,1191.0,1190.9,9.0455521]
[1610006683089,21.23657099,1191.0,1190.9,9.0455521]
[1610006683590,19.55627099,1191.0,1190.9,9.0455521]
[1610006684490,21.21257099,1191.0,1190.9,9.0455521]
[1610006685389,19.55627099,1191.0,1190.9,9.0455521]
[1610006686395,21.21997099,1191.0,1190.9,9.0455521]
[1610006686693,19.55627099,1191.0,1190.9,9.0455521]
[1610006687694,21.25557099,1191.0,1190.9,9.0455521]
[1610006688095,23.56586099,1191.0,1190.9,9.0455521]
[1610006689208,23.56586099,1191.0,1190.9,28.7772521]
[1610006690096,10.16714669,1191.0,1190.9,28.7772521]
[1610006691499,6.15755669,1191.0,1190.9,28.7772521]
[1610006691996,10.16714669,1191.0,1190.9,28.7772521]
[1610006692296,25.64699505,1191.0,1190.9,28.7772521]
[1610006692796,27.33809505,1191.0,1190.9,28.7772521]
[1610006692997,25.64699505,1191.0,1190.9,28.7772521]
[1610006693898,27.35129505,1191.0,1190.9,28.7772521]
[1610006694698,11.87144669,1191.0,1190.9,28.7772521]
[1610006695499,10.16714669,1191.0,1190.9,28.7772521]
[1610006698701,11.82364669,1191.0,1190.9,24.9135521]
[1610006698902,11.82364669,1191.0,1190.9,19.3739521]
[1610006699202,11.82364669,1191.0,1190.9,29.3739521]
[1610006699404,11.82364669,1191.0,1190.9,24.6651521]
[1610006699901,11.82364669,1191.0,1190.9,23.1064521]
[1610006700101,11.82364669,1191.0,1190.9,21.4558521]
[1610006701104,11.82364669,1191.0,1190.9,20.4928521]
[1610006701503,11.82364669,1191.0,1190.9,20.3653521]
[1610006701704,31.41243249,1191.0,1190.9,18.3344521]
[1610006701907,31.41243249,1191.0,1190.9,12.5576521]
[1610006702107,8.72579,1191.0,1190.9,9.1673521]
[1610006702306,8.72579,1191.0,1190.9,6.7948521]
[1610006702508,16.98942466,1191.0,1190.9,6.7948521]
[1610006703009,11.824653,1191.0,1190.9,2.2159521]
[1610006703509,11.824653,1191.0,1190.9,2.0463521]
[1610006704009,11.824653,1191.0,1190.9,1.2264521]
[1610006705021,31.45565959,1191.0,1190.9,1.2264521]
[1610006705715,31.45565959,1191.0,1190.9,1.0755521]
[1610006705915,31.45565959,1191.0,1190.9,5.21e-05]
[1610006709420,11.824653,1191.0,1190.9,5.21e-05]
[1610006712625,11.824653,1191.0,1190.4,0.85810796]
[1610006712824,11.824653,1191.0,1190.4,7.96e-06]
[1610006713026,17.18516111,1190.6,1190.5,10.0]
[1610006713224,19.69816111,1190.6,1190.5,10.0]
[1610006713526,22.79647433,1190.6,1190.5,10.0]
[1610006713826,22.79647433,1190.6,1190.5,9.815]
[1610006714027,26.80606433,1190.6,1190.5,11.10604777]
[1610006714428,25.11726433,1190.6,1190.5,11.10604777]
[1610006715029,9.62090322,1190.6,1190.5,11.10604777]
[1610006715429,11.30270322,1190.6,1190.5,11.10604777]
[1610006716129,11.30270322,1190.6,1190.5,9.60984777]
[1610006717028,11.30270322,1190.6,1190.5,4.777e-05]
[1610006717329,11.30270322,1190.6,1190.5,10.00004777]
[1610006718133,7.29311322,1190.6,1190.5,14.00963777]
[1610006719931,5.61131322,1190.6,1190.5,14.00963777]
[1610006725934,19.03882278,1190.6,1190.5,14.00963777]
[1610006726434,20.70022278,1190.6,1190.5,14.00963777]
[1610006726634,19.03882278,1190.6,1190.5,14.00963777]
[1610006728534,9.62090322,1190.6,1190.5,7.11434777]
[1610006729234,25.11550835,1190.6,1190.5,7.11434777]